fUSD/lending_fUSD_20260520
["ID","MTS","AMOUNT","RATE_DAILY","PERIOD"]
[422671331,1779229843000,-151.0,0.0001494,2]
[422671328,1779229843000,-566.539487,0.0001494,2]
[422671333,1779229843000,-151.0,0.0001494,2]
[422671343,1779229843000,-203.9,0.00014963,2]
[422671344,1779229843000,-203.9,0.00014963,2]
[422671334,1779229843000,-151.0,0.0001494,2]
[422671335,1779229843000,-151.0,0.0001494,2]
[422671336,1779229843000,-150.0,0.0001494,2]
[422671340,1779229843000,-203.9,0.00014963,2]
[422671341,1779229843000,-203.9,0.00014963,2]
[422671332,1779229843000,-151.0,0.0001494,2]
[422671337,1779229843000,-350.0,0.00014959,2]
[422671338,1779229843000,-26811.0,0.00014959,2]
[422671342,1779229843000,-203.9,0.00014963,2]
[422671339,1779229843000,-203.9,0.00014963,2]
[422671347,1779229843000,-203.8,0.00014963,2]
[422671345,1779229843000,-203.9,0.00014963,2]
[422671348,1779229843000,-150.0,0.00014963,2]
[422671346,1779229843000,-203.9,0.00014963,2]
[422671283,1779229843000,-150.0,0.0001485,2]
[422671319,1779229843000,-375.304829,0.0001494,2]
[422671312,1779229843000,-151.0,0.0001494,2]
[422671324,1779229843000,-151.0,0.0001494,2]
[422671310,1779229843000,-151.0,0.0001494,2]
[422671284,1779229843000,-234.28657,0.0001486,2]
[422671292,1779229843000,-1788.7339993,0.000149,2]
[422671286,1779229843000,-150.0,0.00014871,2]
[422671285,1779229843000,-150.0,0.00014871,2]
[422671293,1779229843000,-822.37527009,0.000149,2]
[422671288,1779229843000,-150.0,0.00014893,2]
[422671289,1779229843000,-150.0,0.00014894,2]
[422671294,1779229843000,-11768.87507917,0.000149,2]
[422671313,1779229843000,-156.395135,0.0001494,2]
[422671297,1779229843000,-445.0,0.00014922,2]
[422671302,1779229843000,-816193.0255937,0.0001494,2]
[422671299,1779229843000,-150.0,0.00014929,2]
[422671303,1779229843000,-215315.2599652,0.0001494,2]
[422671298,1779229843000,-150.0,0.00014924,2]
[422671304,1779229843000,-151.0,0.0001494,2]
[422671296,1779229843000,-150.0,0.00014917,2]
[422671295,1779229843000,-500.0,0.00014904,2]
[422671300,1779229843000,-992.64579224,0.0001493,2]
[422671305,1779229843000,-151.0,0.0001494,2]
[422671307,1779229843000,-151.0,0.0001494,2]
[422671317,1779229843000,-375.304829,0.0001494,2]
[422671308,1779229843000,-151.0,0.0001494,2]
[422671315,1779229843000,-151.0,0.0001494,2]
[422671306,1779229843000,-151.0,0.0001494,2]
[422671314,1779229843000,-7257.1139828,0.0001494,2]
[422671311,1779229843000,-2460.4215795,0.0001494,2]
[422671309,1779229843000,-269.012836,0.0001494,2]
[422671318,1779229843000,-375.304829,0.0001494,2]
[422671301,1779229843000,-10011.352587,0.0001494,2]
[422671316,1779229843000,-151.0,0.0001494,2]
[422671357,1779229844000,-278.56667928,0.00014986,2]
[422671359,1779229844000,-2000.0,0.00014993,2]
[422671358,1779229844000,-150.0,0.00014986,2]
[422671353,1779229844000,-150.0,0.00014986,2]
[422671368,1779229844000,-1071.0,0.00015,2]
[422671355,1779229844000,-150.0,0.00014986,2]
[422671350,1779229844000,-150.0,0.00014986,2]
[422671356,1779229844000,-150.0,0.00014986,2]
[422671352,1779229844000,-150.0,0.00014986,2]
[422671349,1779229844000,-500.0,0.00014967,2]
[422671351,1779229844000,-150.0,0.00014986,2]
[422671360,1779229844000,-151.0,0.00014997,2]
[422671354,1779229844000,-150.0,0.00014986,2]
[422671363,1779229844000,-300.0,0.00014999,2]
[422671376,1779229844000,-293.24284431,0.00012246,2]
[422671362,1779229844000,-300.0,0.00014999,2]
[422671374,1779229844000,-1690.5913692,0.00012246,2]
[422671375,1779229844000,-2305.11895052,0.00012246,2]
[422671373,1779229844000,888.0,0.00030137,120]
[422671372,1779229844000,-600.3415828,0.00012246,2]
[422671371,1779229844000,-190.82,0.00010464,2]
[422671377,1779229844000,-657.65122419,0.00012246,2]
[422671369,1779229844000,-2032.49998,0.00015,2]
[422671370,1779229844000,-575.20294117,0.00015,2]
[422671364,1779229844000,-666.0,0.00014999,2]
[422671367,1779229844000,-638267.89161648,0.00015,2]
[422671361,1779229844000,-300.0,0.00014999,2]
[422671366,1779229844000,-300.0,0.00014999,2]
[422671365,1779229844000,-666.0,0.00014999,2]
[422671431,1779229846000,-6487.69188424,0.00012246,2]
[422671433,1779229846000,-936.03138715,0.00013659,2]
[422671430,1779229846000,-15557.13887335,0.00011091,2]
[422671429,1779229846000,-8906.36984767,0.00011091,2]
[422671428,1779229846000,-3810.66772654,0.00011091,2]
[422671406,1779229846000,-3493.81317504,0.00011091,2]
[422671410,1779229846000,-271.2360004,0.00011091,2]
[422671408,1779229846000,-506.27268784,0.00011091,2]
[422671398,1779229846000,-645.75968916,0.00011091,2]
[422671432,1779229846000,-12034.63785526,0.00012584,2]
[422671445,1779229849000,888.0,0.00030137,120]
[422671446,1779229859000,888.0,0.00030137,120]
[422671447,1779229869000,888.0,0.00030137,120]
[422671449,1779229889000,555.0,0.00030136,120]
[422671450,1779229896000,314.8,0.00030137,120]
[422671452,1779229913000,555.0,0.00030136,120]
[422671453,1779229945000,2356.12,0.00030137,120]
[422671466,1779229977000,165.33,6.487e-05,2]
[422671469,1779229978000,165.33,9.157e-05,2]
[422671468,1779229978000,165.33,8.267e-05,2]
[422671467,1779229978000,165.33,7.377e-05,2]
[422671471,1779230104000,150.0,0.00011233,120]
[422671473,1779230298000,150.59,0.00030082,120]
[422671474,1779230450000,455.85,9.58e-05,2]
[422671475,1779230461000,166.84,7.651e-05,2]
[422671476,1779230518000,10799.82,9.54e-05,2]
[422671477,1779230539000,2000.0,9.58e-05,2]
[422671478,1779230574000,500.0,9.588e-05,2]
[422671479,1779230642000,161.52,9.578e-05,2]
[422671480,1779230646000,3725.76,9.554e-05,2]
[422671481,1779230662000,100463.4751,0.00030136,120]
[422671482,1779230842000,200.0,9.465e-05,2]
[422671483,1779230847000,282410.56021,0.00030136,120]
[422671485,1779230849000,154.56,5.527e-05,2]
[422671484,1779230849000,154.56,4.86e-05,2]
[422671487,1779230850000,154.56,6.862e-05,2]
[422671486,1779230850000,154.56,6.195e-05,2]
[422671489,1779230850000,154.56,8.196e-05,2]
[422671488,1779230850000,154.56,7.529e-05,2]
[422671490,1779230850000,154.56,8.863e-05,2]
[422671491,1779230851000,154.56,9.53e-05,2]
[422671492,1779230940000,1000.0,0.00030136,120]
[422671516,1779231032000,-424.985,0.00010345,2]
[422671518,1779231032000,-1033.07712735,0.00010456,2]
[422671520,1779231032000,-822.37527011,0.00010456,2]
[422671519,1779231032000,-2235.97913562,0.00010456,2]
[422671517,1779231032000,-209.0,0.0001042,2]
[422671522,1779231032000,-179.37544341,0.00010503,2]
[422671521,1779231032000,-191.21706452,0.00010456,2]
[422671523,1779231032000,-179.3754434,0.00010503,2]
[422671525,1779231032000,-2782.49,0.00010529,2]
[422671526,1779231032000,-787.88301865,0.00010546,2]
[422671524,1779231032000,-336.6022,0.00010521,2]
[422671528,1779231032000,-500.0,0.00010555,2]
[422671530,1779231032000,-155.65124386,0.00010555,2]
[422671531,1779231032000,-500.0,0.00010555,2]
[422671529,1779231032000,-500.0,0.00010555,2]
[422671532,1779231032000,-150.0,0.00010555,2]
[422671514,1779231032000,-27933.18381483,0.00010321,2]
[422671527,1779231032000,-500.0,0.00010555,2]
[422671513,1779231032000,-150.0,0.0001032,2]
[422671533,1779231032000,-5355.09514628,0.00010555,2]
[422671494,1779231032000,-394.06952351,0.00010026,2]
[422671498,1779231032000,-150.0,0.00010219,2]
[422671497,1779231032000,-332.99,0.00010154,2]
[422671499,1779231032000,-154.11064451,0.00010245,2]
[422671496,1779231032000,-150.0,0.00010119,2]
[422671495,1779231032000,-2782.49,0.00010027,2]
[422671500,1779231032000,-161.52,0.00010262,2]
[422671504,1779231032000,-300.0,0.00010294,2]
[422671515,1779231032000,-5979.233,0.00010345,2]
[422671502,1779231032000,-300.0,0.00010294,2]
[422671501,1779231032000,-2782.49,0.00010278,2]
[422671505,1779231032000,-300.0,0.00010295,2]
[422671509,1779231032000,-299.99,0.00010296,2]
[422671507,1779231032000,-999.99,0.00010295,2]
[422671508,1779231032000,-150.99,0.00010295,2]
[422671510,1779231032000,-50116.57386256,0.00010311,2]
[422671511,1779231032000,-1000.0,0.00010319,2]
[422671506,1779231032000,-9999.99,0.00010295,2]
[422671503,1779231032000,-1200.0,0.00010294,2]
[422671534,1779231032000,-5355.09514628,0.00010555,2]
[422671512,1779231032000,-150.0,0.0001032,2]
[422671540,1779231032000,-5355.09514628,0.00010555,2]
[422671560,1779231032000,-500.0,0.00010555,2]
[422671559,1779231032000,-489.01050425,0.00010555,2]
[422671564,1779231032000,-500.0,0.00010555,2]
[422671563,1779231032000,-575.18242857,0.00010555,2]
[422671561,1779231032000,-500.0,0.00010555,2]
[422671562,1779231032000,-500.0,0.00010555,2]
[422671566,1779231032000,-156.6477215,0.00010555,2]
[422671565,1779231032000,-500.0,0.00010555,2]
[422671558,1779231032000,-500.0,0.00010555,2]
[422671570,1779231032000,-256.06443327,0.00010555,2]
[422671571,1779231032000,-468.85750489,0.00010555,2]
[422671569,1779231032000,-526.78590062,0.00010555,2]
[422671572,1779231032000,-98090.12975984,0.00010556,2]
[422671573,1779231032000,-59663.0063796,0.00010556,2]
[422671574,1779231032000,-1383.21009592,0.00010556,2]
[422671576,1779231032000,-844.67849283,0.00010556,2]
[422671575,1779231032000,-267.00000021,0.00010556,2]
[422671535,1779231032000,-5355.09514628,0.00010555,2]
[422671568,1779231032000,-150.0,0.00010555,2]
[422671556,1779231032000,-295.05908603,0.00010555,2]
[422671567,1779231032000,-150.0,0.00010555,2]
[422671557,1779231032000,-5355.09514624,0.00010555,2]
[422671536,1779231032000,-5355.09514628,0.00010555,2]
[422671555,1779231032000,-5355.09514628,0.00010555,2]
[422671539,1779231032000,-5355.09514628,0.00010555,2]
[422671537,1779231032000,-5355.09514628,0.00010555,2]
[422671538,1779231032000,-5355.09514628,0.00010555,2]
[422671542,1779231032000,-5355.09514628,0.00010555,2]
[422671543,1779231032000,-5355.09514628,0.00010555,2]
[422671544,1779231032000,-5355.09514628,0.00010555,2]
[422671545,1779231032000,-5355.09514628,0.00010555,2]
[422671541,1779231032000,-5355.09514628,0.00010555,2]
[422671547,1779231032000,-5355.09514628,0.00010555,2]
[422671549,1779231032000,-5355.09514628,0.00010555,2]
[422671550,1779231032000,-5355.09514628,0.00010555,2]
[422671548,1779231032000,-5355.09514628,0.00010555,2]
[422671551,1779231032000,-5355.09514628,0.00010555,2]
[422671552,1779231032000,-5355.09514628,0.00010555,2]
[422671546,1779231032000,-5355.09514628,0.00010555,2]
[422671553,1779231032000,-5355.09514628,0.00010555,2]
[422671554,1779231032000,-5355.09514628,0.00010555,2]
[422671612,1779231038000,-500.0,0.00010655,2]
[422671621,1779231038000,-500.0,0.00010655,2]
[422671619,1779231038000,-500.0,0.00010655,2]
[422671625,1779231038000,-500.0,0.00010655,2]
[422671615,1779231038000,-500.0,0.00010655,2]
[422671623,1779231038000,-500.0,0.00010655,2]
[422671627,1779231038000,-500.0,0.00010655,2]
[422671616,1779231038000,-500.0,0.00010655,2]
[422671630,1779231038000,-500.0,0.00010655,2]
[422671641,1779231038000,-500.0,0.00010655,2]
[422671628,1779231038000,-500.0,0.00010655,2]
[422671631,1779231038000,-500.0,0.00010655,2]
[422671632,1779231038000,-500.0,0.00010655,2]
[422671633,1779231038000,-500.0,0.00010655,2]
[422671635,1779231038000,-500.0,0.00010655,2]
[422671634,1779231038000,-500.0,0.00010655,2]
[422671636,1779231038000,-500.0,0.00010655,2]
[422671639,1779231038000,-500.0,0.00010655,2]
[422671583,1779231038000,-33191.258,0.00010556,2]
[422671629,1779231038000,-500.0,0.00010655,2]
[422671608,1779231038000,-500.0,0.00010655,2]
[422671586,1779231038000,-613.75413033,0.00010655,2]
[422671603,1779231038000,-500.0,0.00010655,2]
[422671582,1779231038000,-1339751.9752716,0.00010556,2]
[422671585,1779231038000,-500.0,0.00010655,2]
[422671584,1779231038000,-175.61273857,0.00010655,2]
[422671588,1779231038000,-500.0,0.00010655,2]
[422671591,1779231038000,-500.0,0.00010655,2]
[422671590,1779231038000,-500.0,0.00010655,2]
[422671587,1779231038000,-500.0,0.00010655,2]
[422671589,1779231038000,-500.0,0.00010655,2]
[422671637,1779231038000,-500.0,0.00010655,2]
[422671606,1779231038000,-500.0,0.00010655,2]
[422671593,1779231038000,-500.0,0.00010655,2]
[422671597,1779231038000,-500.0,0.00010655,2]
[422671595,1779231038000,-500.0,0.00010655,2]
[422671596,1779231038000,-500.0,0.00010655,2]
[422671598,1779231038000,-500.0,0.00010655,2]
[422671600,1779231038000,-500.0,0.00010655,2]
[422671599,1779231038000,-500.0,0.00010655,2]
[422671602,1779231038000,-500.0,0.00010655,2]
[422671601,1779231038000,-500.0,0.00010655,2]
[422671604,1779231038000,-500.0,0.00010655,2]
[422671594,1779231038000,-500.0,0.00010655,2]
[422671643,1779231038000,-500.0,0.00010655,2]
[422671592,1779231038000,-500.0,0.00010655,2]
[422671657,1779231038000,-500.0,0.00010655,2]
[422671694,1779231038000,-215.15951567,0.00010698,2]
[422671698,1779231038000,-2000.0,0.00010778,2]
[422671700,1779231038000,-2782.49,0.00010779,2]
[422671702,1779231038000,-500.0,0.00010829,2]
[422671710,1779231038000,-150.0,0.00010959,2]
[422671708,1779231038000,-161.52,0.00010946,2]
[422671704,1779231038000,-199.26808076,0.00010866,2]
[422671706,1779231038000,-15215.1412017,0.000109,2]
[422671724,1779231038000,-169.74159497,0.00011022,2]
[422671692,1779231038000,-208.58623393,0.0001069,2]
[422671714,1779231038000,-193.45225101,0.00011022,2]
[422671716,1779231038000,-186.91634163,0.00011022,2]
[422671722,1779231038000,-300.0,0.00011022,2]
[422671720,1779231038000,-472.11844338,0.00011022,2]
[422671718,1779231038000,-342.12098596,0.00011022,2]
[422671732,1779231038000,-15215.14120164,0.00011091,2]
[422671726,1779231038000,-919.53701192,0.00011022,2]
[422671728,1779231038000,-250.0,0.00011026,2]
[422671730,1779231038000,-2782.49,0.0001103,2]
[422671645,1779231038000,-500.0,0.00010655,2]
[422671712,1779231038000,-250.0,0.00011022,2]
[422671688,1779231038000,-223.13028965,0.00010689,2]
[422671610,1779231038000,-500.0,0.00010655,2]
[422671690,1779231038000,-160.0,0.0001069,2]
[422671685,1779231038000,-500.0,0.00010655,2]
[422671655,1779231038000,-500.0,0.00010655,2]
[422671647,1779231038000,-500.0,0.00010655,2]
[422671649,1779231038000,-500.0,0.00010655,2]
[422671653,1779231038000,-500.0,0.00010655,2]
[422671661,1779231038000,-500.0,0.00010655,2]
[422671659,1779231038000,-500.0,0.00010655,2]
[422671670,1779231038000,-500.0,0.00010655,2]
[422671672,1779231038000,-500.0,0.00010655,2]
[422671668,1779231038000,-500.0,0.00010655,2]
[422671651,1779231038000,-553.86314416,0.00010655,2]
[422671665,1779231038000,-500.0,0.00010655,2]
[422671663,1779231038000,-500.0,0.00010655,2]
[422671696,1779231038000,-455.85,0.00010778,2]
[422671686,1779231038000,-500.0,0.00010655,2]
[422671682,1779231038000,-500.0,0.00010655,2]
[422671680,1779231038000,-500.0,0.00010655,2]
[422671678,1779231038000,-155.38631441,0.00010655,2]
[422671676,1779231038000,-500.0,0.00010655,2]
[422671674,1779231038000,-500.0,0.00010655,2]
[422671684,1779231038000,-500.0,0.00010655,2]
[422671683,1779231038000,-500.0,0.00010655,2]
[422671820,1779231039000,-3503.85652,0.00012969,2]
[422671815,1779231039000,-50503.48493949,0.00012771,2]
[422671817,1779231039000,-808.017936,0.00012969,2]
[422671819,1779231039000,-2038.300611,0.00012969,2]
[422671814,1779231039000,-23105.065839,0.00012771,2]
[422671812,1779231039000,-300.0,0.00012749,2]
[422671806,1779231039000,-2235.9791356,0.00012678,2]
[422671804,1779231039000,-1033.0771273,0.00012678,2]
[422671808,1779231039000,-822.37527009,0.00012678,2]
[422671802,1779231039000,-500.0,0.00012475,2]
[422671796,1779231039000,-587.0,0.00012448,2]
[422671821,1779231039000,-853.895931,0.00012969,2]
[422671810,1779231039000,-500.0,0.00012747,2]
[422671822,1779231039000,-1131.854576,0.00012969,2]
[422671833,1779231039000,-1033.0771273,0.00013419,2]
[422671826,1779231039000,-200.0,0.00013023,2]
[422671825,1779231039000,-500.0,0.00013021,2]
[422671824,1779231039000,-161.52,0.00012999,2]
[422671827,1779231039000,-455.85,0.00013173,2]
[422671828,1779231039000,-2000.0,0.00013173,2]
[422671829,1779231039000,-23105.065839,0.00013234,2]
[422671832,1779231039000,-3725.76,0.00013375,2]
[422671831,1779231039000,-500.0,0.00013295,2]
[422671830,1779231039000,-50503.48493949,0.00013234,2]
[422671800,1779231039000,-500.0,0.00012473,2]
[422671834,1779231039000,-150.0,0.00013488,2]
[422671840,1779231039000,-150.0,0.00013488,2]
[422671838,1779231039000,-150.0,0.00013488,2]
[422671823,1779231039000,-15215.14120164,0.00012995,2]
[422671798,1779231039000,-2351.0,0.00012456,2]
[422671770,1779231039000,-50503.48493949,0.00011845,2]
[422671788,1779231039000,-161.52,0.00012315,2]
[422671738,1779231039000,-23105.06583902,0.00011099,2]
[422671734,1779231039000,-50503.48493954,0.00011099,2]
[422671736,1779231039000,-50503.48493949,0.00011099,2]
[422671740,1779231039000,-23105.065839,0.00011099,2]
[422671742,1779231039000,-500.0,0.00011103,2]
[422671744,1779231039000,-1033.0771273,0.00011197,2]
[422671747,1779231039000,-150.0,0.00011233,2]
[422671750,1779231039000,-240.0,0.0001132,2]
[422671748,1779231039000,-420.0,0.0001132,2]
[422671752,1779231039000,-1680.0,0.00011323,2]
[422671766,1779231039000,-15215.14120164,0.00011726,2]
[422671754,1779231039000,-255.0,0.00011331,2]
[422671756,1779231039000,-500.0,0.00011377,2]
[422671760,1779231039000,-50503.48493949,0.00011382,2]
[422671758,1779231039000,-23105.065839,0.00011381,2]
[422671762,1779231039000,-161.52,0.0001163,2]
[422671764,1779231039000,-500.0,0.00011651,2]
[422671768,1779231039000,-23105.065839,0.00011844,2]
[422671772,1779231039000,-500.0,0.00011925,2]
[422671837,1779231039000,-150.0,0.00013488,2]
[422671780,1779231039000,-500.0,0.00012199,2]
[422671774,1779231039000,-1033.0771273,0.00011937,2]
[422671776,1779231039000,-455.85,0.00011975,2]
[422671778,1779231039000,-2000.0,0.00011976,2]
[422671782,1779231039000,-500.0,0.00012201,2]
[422671792,1779231039000,-15215.14120164,0.00012361,2]
[422671794,1779231039000,-433.0,0.00012445,2]
[422671784,1779231039000,-23105.065839,0.00012307,2]
[422671790,1779231039000,-150.59,0.00012329,2]
[422671786,1779231039000,-50503.48493949,0.00012308,2]
[422671835,1779231039000,-150.0,0.00013488,2]
[422671818,1779231039000,-4695.594546,0.00012969,2]
[422671836,1779231039000,-151.44167909,0.00013488,2]
[422671874,1779231039000,-500.0,0.00013698,2]
[422671876,1779231039000,-500.0,0.00013698,2]
[422671878,1779231039000,-500.0,0.00013698,2]
[422671875,1779231039000,-500.0,0.00013698,2]
[422671877,1779231039000,-500.0,0.00013698,2]
[422671879,1779231039000,-501.52136139,0.00013698,2]
[422671880,1779231039000,-321.47,0.00013698,2]
[422671881,1779231039000,-500.0,0.00013698,2]
[422671883,1779231039000,-500.0,0.00013698,2]
[422671886,1779231039000,-500.0,0.00013698,2]
[422671885,1779231039000,-516.09371618,0.00013698,2]
[422671884,1779231039000,-500.0,0.00013698,2]
[422671882,1779231039000,-500.0,0.00013698,2]
[422671887,1779231039000,-500.0,0.00013698,2]
[422671890,1779231039000,-500.0,0.00013698,2]
[422671891,1779231039000,-500.0,0.00013698,2]
[422671888,1779231039000,-500.0,0.00013698,2]
[422671889,1779231039000,-500.0,0.00013698,2]
[422671892,1779231039000,-478.0,0.00013698,2]
[422671893,1779231039000,-1409.06,0.00013698,2]
[422671894,1779231039000,-500.0,0.00013698,2]
[422671896,1779231039000,-500.0,0.00013698,2]
[422671897,1779231039000,-500.0,0.00013698,2]
[422671899,1779231039000,-500.0,0.00013698,2]
[422671895,1779231039000,-500.0,0.00013698,2]
[422671898,1779231039000,-500.0,0.00013698,2]
[422671900,1779231039000,-500.0,0.00013698,2]
[422671901,1779231039000,-500.0,0.00013698,2]
[422671839,1779231039000,-150.0,0.00013488,2]
[422671871,1779231039000,-500.0,0.00013698,2]
[422671873,1779231039000,-500.0,0.00013698,2]
[422671902,1779231039000,-500.0,0.00013698,2]
[422671870,1779231039000,-50503.48493949,0.00013697,2]
[422671869,1779231039000,-23105.065839,0.00013697,2]
[422671842,1779231039000,-150.0,0.00013488,2]
[422671843,1779231039000,-150.0,0.00013488,2]
[422671844,1779231039000,-150.0,0.00013488,2]
[422671845,1779231039000,-150.0,0.00013511,2]
[422671846,1779231039000,-150.0,0.00013534,2]
[422671847,1779231039000,-150.0,0.00013545,2]
[422671849,1779231039000,-500.0,0.00013569,2]
[422671848,1779231039000,-150.0,0.00013557,2]
[422671850,1779231039000,-150.0,0.0001358,2]
[422671852,1779231039000,-150.0,0.00013603,2]
[422671851,1779231039000,-150.0,0.00013581,2]
[422671853,1779231039000,-150.0,0.00013603,2]
[422671855,1779231039000,-150.0,0.00013626,2]
[422671854,1779231039000,-150.0,0.00013624,2]
[422671841,1779231039000,-150.00000001,0.00013488,2]
[422671859,1779231039000,-555.0,0.00013658,2]
[422671857,1779231039000,-500.0,0.00013644,2]
[422671872,1779231039000,-500.0,0.00013698,2]
[422671867,1779231039000,-823.0,0.00013689,2]
[422671868,1779231039000,-150.0,0.00013695,2]
[422671863,1779231039000,-150.0,0.00013675,2]
[422671866,1779231039000,-161.52,0.00013683,2]
[422671861,1779231039000,-736.0,0.00013663,2]
[422671865,1779231039000,-150.0,0.00013675,2]
[422671864,1779231039000,-150.0,0.00013675,2]
[422671860,1779231039000,-150.0,0.00013661,2]
[422671858,1779231039000,-150.0,0.00013649,2]
[422671856,1779231039000,-15215.14120164,0.0001363,2]
[422671862,1779231039000,-150.0,0.00013672,2]
[422671946,1779231040000,-500.0,0.00013698,2]
[422671948,1779231040000,-500.0,0.00013698,2]
[422671943,1779231040000,-500.0,0.00013698,2]
[422671941,1779231040000,-502.56,0.00013698,2]
[422671945,1779231040000,-500.0,0.00013698,2]
[422671939,1779231040000,-502.56,0.00013698,2]
[422671942,1779231040000,-502.56,0.00013698,2]
[422671940,1779231040000,-502.56,0.00013698,2]
[422671937,1779231040000,-502.56,0.00013698,2]
[422671936,1779231040000,-502.56,0.00013698,2]
[422671935,1779231040000,-502.56,0.00013698,2]
[422671944,1779231040000,-500.0,0.00013698,2]
[422671947,1779231040000,-500.0,0.00013698,2]
[422671954,1779231040000,-5213.56,0.00013698,2]
[422671953,1779231040000,-5213.56,0.00013698,2]
[422671950,1779231040000,-500.0,0.00013698,2]
[422671949,1779231040000,-500.0,0.00013698,2]
[422671951,1779231040000,-500.0,0.00013698,2]
[422671955,1779231040000,-5213.56,0.00013698,2]
[422671958,1779231040000,-5213.56,0.00013698,2]
[422671956,1779231040000,-5213.56,0.00013698,2]
[422671959,1779231040000,-5213.56,0.00013698,2]
[422671957,1779231040000,-5213.56,0.00013698,2]
[422671960,1779231040000,-5213.56,0.00013698,2]
[422671963,1779231040000,-5213.56,0.00013698,2]
[422671962,1779231040000,-5213.56,0.00013698,2]
[422671938,1779231040000,-502.56,0.00013698,2]
[422671961,1779231040000,-5213.56,0.00013698,2]
[422671952,1779231040000,-430.77473575,0.00013698,2]
[422671934,1779231040000,-502.56,0.00013698,2]
[422671918,1779231040000,-500.0,0.00013698,2]
[422671933,1779231040000,-502.56,0.00013698,2]
[422671964,1779231040000,-5213.56,0.00013698,2]
[422671904,1779231040000,-500.0,0.00013698,2]
[422671905,1779231040000,-349.78123329,0.00013698,2]
[422671903,1779231040000,-500.0,0.00013698,2]
[422671906,1779231040000,-500.0,0.00013698,2]
[422671907,1779231040000,-500.0,0.00013698,2]
[422671909,1779231040000,-209.51466794,0.00013698,2]
[422671908,1779231040000,-500.0,0.00013698,2]
[422671911,1779231040000,-500.0,0.00013698,2]
[422671910,1779231040000,-500.0,0.00013698,2]
[422671912,1779231040000,-500.0,0.00013698,2]
[422671913,1779231040000,-500.0,0.00013698,2]
[422671917,1779231040000,-500.0,0.00013698,2]
[422671915,1779231040000,-500.0,0.00013698,2]
[422671916,1779231040000,-502.26457944,0.00013698,2]
[422671919,1779231040000,-500.0,0.00013698,2]
[422671914,1779231040000,-500.0,0.00013698,2]
[422671920,1779231040000,-500.0,0.00013698,2]
[422671922,1779231040000,-500.0,0.00013698,2]
[422671921,1779231040000,-500.0,0.00013698,2]
[422671926,1779231040000,-502.56,0.00013698,2]
[422671923,1779231040000,-504.85547194,0.00013698,2]
[422671924,1779231040000,-502.56,0.00013698,2]
[422671925,1779231040000,-502.56,0.00013698,2]
[422671927,1779231040000,-502.56,0.00013698,2]
[422671928,1779231040000,-502.56,0.00013698,2]
[422671932,1779231040000,-502.56,0.00013698,2]
[422671930,1779231040000,-502.56,0.00013698,2]
[422671931,1779231040000,-502.56,0.00013698,2]
[422671929,1779231040000,-502.56,0.00013698,2]
[422671966,1779231040000,-5213.56,0.00013698,2]
[422672010,1779231040000,-525.7,0.00013698,2]
[422671967,1779231040000,-5213.56,0.00013698,2]
[422672000,1779231040000,-525.7,0.00013698,2]
[422672001,1779231040000,-525.7,0.00013698,2]
[422672006,1779231040000,-525.7,0.00013698,2]
[422672003,1779231040000,-525.7,0.00013698,2]
[422672004,1779231040000,-525.7,0.00013698,2]
[422672005,1779231040000,-525.7,0.00013698,2]